[Event "Titled Tuesday Blitz March 21 Late 2023"]
[White "Meunier-Pion, Jean"]
[Black "Shapiro, Viktor"]
[WhiteFideId "20685327"]
[BlackFideId "4175700"]
[WhiteElo "2124"]
[BlackElo "2152"]
[Result "1-0"]
[Round "10"]
[TimeControl "180+2"]
[Date "2023.03.21"]
[WhiteClock "0:00:05"]
[BlackClock "0:00:18"]

1. e4 {[%clk 0:03:00]}  c5 {[%clk 0:02:57]} 2. Nf3 {[%clk 0:03:00]}  d6 {[%clk 0:02:57]} 3. d4 {[%clk 0:03:01]}  cxd4 {[%clk 0:02:58]} 4. Nxd4 {[%clk 0:03:01]}  Nf6 {[%clk 0:02:58]} 5. Nc3 {[%clk 0:03:02]}  a6 {[%clk 0:02:59]} 6. h3 {[%clk 0:03:02]}  e5 {[%clk 0:02:59]} 7. Nde2 {[%clk 0:03:03]}  h5 {[%clk 0:02:57]} 8. g3 {[%clk 0:03:03]}  Be6 {[%clk 0:02:57]} 9. Bg2 {[%clk 0:03:03]}  Nbd7 {[%clk 0:02:57]} 10. a4 {[%clk 0:03:03]}  Qc7 {[%clk 0:02:57]} 11. b3 {[%clk 0:02:57]}  Rc8 {[%clk 0:02:44]} 12. O-O {[%clk 0:02:46]}  Be7 {[%clk 0:02:40]} 13. Ba3 {[%clk 0:02:33]}  O-O {[%clk 0:02:20]} 14. Rc1 {[%clk 0:02:33]}  Rfd8 {[%clk 0:02:20]} 15. Nd5 {[%clk 0:02:33]}  Nxd5 {[%clk 0:02:16]} 16. exd5 {[%clk 0:02:33]}  Bf5 {[%clk 0:02:16]} 17. c4 {[%clk 0:02:31]}  Nc5 {[%clk 0:02:14]} 18. Nc3 {[%clk 0:02:12]}  Bg6 {[%clk 0:02:07]} 19. f4 {[%clk 0:02:10]}  Bd3 {[%clk 0:02:02]} 20. Rf2 {[%clk 0:01:34]}  e4 {[%clk 0:01:40]} 21. Bxc5 {[%clk 0:00:43]}  Qxc5 {[%clk 0:01:39]} 22. Nxe4 {[%clk 0:00:37]}  Bxe4 {[%clk 0:01:38]} 23. Bxe4 {[%clk 0:00:38]}  h4 {[%clk 0:01:38]} 24. Qh5 {[%clk 0:00:36]}  g6 {[%clk 0:01:29]} 25. Bxg6 {[%clk 0:00:30]}  fxg6 {[%clk 0:01:29]} 26. Qxg6+ {[%clk 0:00:31]}  Kf8 {[%clk 0:01:29]} 27. g4 {[%clk 0:00:20]}  Qd4 {[%clk 0:01:21]} 28. g5 {[%clk 0:00:18]}  Qg7 {[%clk 0:01:19]} 29. Qe6 {[%clk 0:00:17]}  Qf7 {[%clk 0:01:15]} 30. Qh6+ {[%clk 0:00:16]}  Kg8 {[%clk 0:01:14]} 31. Qxh4 {[%clk 0:00:13]}  Rf8 {[%clk 0:01:12]} 32. Re1 {[%clk 0:00:12]}  Rce8 {[%clk 0:01:10]} 33. Re6 {[%clk 0:00:12]}  Qg7 {[%clk 0:01:04]} 34. Qh5 {[%clk 0:00:10]}  Qa1+ {[%clk 0:00:43]} 35. Kg2 {[%clk 0:00:10]}  Rf7 {[%clk 0:00:41]} 36. Rg6+ {[%clk 0:00:10]}  Kf8 {[%clk 0:00:40]} 37. Qh6+ {[%clk 0:00:08]}  Rg7 {[%clk 0:00:40]} 38. f5 {[%clk 0:00:05]}  Bxg5 {[%clk 0:00:26]} 39. Qxg5 {[%clk 0:00:03]}  Re1 {[%clk 0:00:23]} 40. Qd8+ {[%clk 0:00:02]}  Kf7 {[%clk 0:00:19]} 41. Qd7+ {[%clk 0:00:03]}  Kg8 {[%clk 0:00:19]} 42. Qxg7+ {[%clk 0:00:02]}  Qxg7 {[%clk 0:00:19]} 43. Rxg7+ {[%clk 0:00:03]}  Kxg7 {[%clk 0:00:19]} 44. f6+ {[%clk 0:00:03]}  Kf7 {[%clk 0:00:20]} 45. Rf3 {[%clk 0:00:04]}  Re2+ {[%clk 0:00:19]} 46. Kg3 {[%clk 0:00:04]}  Rb2 {[%clk 0:00:20]} 47. h4 {[%clk 0:00:04]}  Rc2 {[%clk 0:00:20]} 48. h5 {[%clk 0:00:04]}  b5 {[%clk 0:00:20]} 49. axb5 {[%clk 0:00:04]}  axb5 {[%clk 0:00:21]} 50. h6 {[%clk 0:00:04]}  bxc4 {[%clk 0:00:19]} 51. h7 {[%clk 0:00:04]}  cxb3 {[%clk 0:00:17]} 52. h8=Q {[%clk 0:00:04]}  b2 {[%clk 0:00:18]} 53. Qg7+ {[%clk 0:00:04]}  Ke8 {[%clk 0:00:18]} 54. Qe7# {[%clk 0:00:05]} 1-0


[Site "https://www.chess.com"]

[Event "Titled Tuesday Blitz March 21 Late 2023"]
[White "Guzman Moneo, Alberto"]
[Black "Golubev, Mikhail"]
[WhiteFideId "2209616"]
[BlackFideId "14100983"]
[WhiteElo "2157"]
[BlackElo "2374"]
[Result "0-1"]
[Round "10"]
[TimeControl "180+2"]
[Date "2023.03.21"]
[WhiteClock "0:00:23"]
[BlackClock "0:00:13"]

1. e4 {[%clk 0:02:57]}  c5 {[%clk 0:02:59]} 2. Nc3 {[%clk 0:02:55]}  d6 {[%clk 0:02:56]} 3. Nge2 {[%clk 0:02:54]}  Nc6 {[%clk 0:02:54]} 4. g3 {[%clk 0:02:52]}  g6 {[%clk 0:02:54]} 5. d4 {[%clk 0:02:49]}  cxd4 {[%clk 0:02:53]} 6. Nxd4 {[%clk 0:02:50]}  Nf6 {[%clk 0:02:47]} 7. Bg2 {[%clk 0:02:48]}  Nxd4 {[%clk 0:02:41]} 8. Qxd4 {[%clk 0:02:48]}  Bg7 {[%clk 0:02:41]} 9. O-O {[%clk 0:02:46]}  O-O {[%clk 0:02:39]} 10. h3 {[%clk 0:02:23]}  Be6 {[%clk 0:02:35]} 11. Qb4 {[%clk 0:02:11]}  a5 {[%clk 0:02:15]} 12. Qxb7 {[%clk 0:02:05]}  Nd7 {[%clk 0:01:52]} 13. Nd5 {[%clk 0:01:52]}  Rb8 {[%clk 0:01:46]} 14. Qc7 {[%clk 0:01:43]}  Bxd5 {[%clk 0:01:29]} 15. Qxd8 {[%clk 0:01:43]}  Rfxd8 {[%clk 0:01:29]} 16. exd5 {[%clk 0:01:43]}  Bxb2 {[%clk 0:01:28]} 17. Rb1 {[%clk 0:01:35]}  Bxc1 {[%clk 0:01:27]} 18. Rfxc1 {[%clk 0:01:35]}  Rdc8 {[%clk 0:01:02]} 19. h4 {[%clk 0:01:28]}  Rxb1 {[%clk 0:00:56]} 20. Rxb1 {[%clk 0:01:28]}  Rxc2 {[%clk 0:00:56]} 21. Rb7 {[%clk 0:01:24]}  Nc5 {[%clk 0:00:47]} 22. Rxe7 {[%clk 0:01:19]}  Rxa2 {[%clk 0:00:46]} 23. Re8+ {[%clk 0:01:12]}  Kg7 {[%clk 0:00:44]} 24. Rd8 {[%clk 0:01:12]}  a4 {[%clk 0:00:45]} 25. Rxd6 {[%clk 0:01:12]}  a3 {[%clk 0:00:42]} 26. Rd8 {[%clk 0:00:52]}  Rb2 {[%clk 0:00:31]} 27. Ra8 {[%clk 0:00:43]}  a2 {[%clk 0:00:30]} 28. Bf1 {[%clk 0:00:42]}  Nb3 {[%clk 0:00:17]} 29. d6 {[%clk 0:00:24]}  a1=Q {[%clk 0:00:14]} 30. Rxa1 {[%clk 0:00:24]}  Nxa1 {[%clk 0:00:14]} 31. d7 {[%clk 0:00:23]}  Rd2 {[%clk 0:00:14]} 32. Bb5 {[%clk 0:00:24]}  Nb3 {[%clk 0:00:14]} 33. Kf1 {[%clk 0:00:22]}  Nc5 {[%clk 0:00:14]} 34. Ke1 {[%clk 0:00:23]}  Rd6 {[%clk 0:00:13]} 0-1


[Site "https://www.chess.com"]

[Event "Titled Tuesday Blitz March 21 Late 2023"]
[White "Kubatko, Ivan"]
[Black "Forgacs, Attila Jr."]
[WhiteFideId "24111473"]
[BlackFideId "773654"]
[WhiteElo "2285"]
[BlackElo "2168"]
[Result "1/2-1/2"]
[Round "10"]
[TimeControl "180+2"]
[Date "2023.03.21"]
[WhiteClock "0:00:06"]
[BlackClock "0:00:08"]

1. e4 {[%clk 0:03:00]}  e5 {[%clk 0:03:00]} 2. Nf3 {[%clk 0:02:56]}  Nc6 {[%clk 0:03:00]} 3. Nc3 {[%clk 0:02:55]}  Nf6 {[%clk 0:03:00]} 4. g3 {[%clk 0:02:55]}  d5 {[%clk 0:03:00]} 5. exd5 {[%clk 0:02:55]}  Nxd5 {[%clk 0:03:01]} 6. d3 {[%clk 0:02:54]}  Be6 {[%clk 0:02:51]} 7. Bg2 {[%clk 0:02:53]}  Bd6 {[%clk 0:02:45]} 8. Ng5 {[%clk 0:02:43]}  Nxc3 {[%clk 0:02:40]} 9. Nxe6 {[%clk 0:02:42]}  Nxd1 {[%clk 0:02:36]} 10. Nxd8 {[%clk 0:02:41]}  Rxd8 {[%clk 0:02:25]} 11. Kxd1 {[%clk 0:02:41]}  f5 {[%clk 0:02:18]} 12. c3 {[%clk 0:02:31]}  e4 {[%clk 0:02:16]} 13. dxe4 {[%clk 0:02:09]}  fxe4 {[%clk 0:01:56]} 14. Ke2 {[%clk 0:01:55]}  O-O {[%clk 0:01:53]} 15. Bxe4 {[%clk 0:01:52]}  Ne5 {[%clk 0:01:45]} 16. Be3 {[%clk 0:01:27]}  Rde8 {[%clk 0:01:37]} 17. h3 {[%clk 0:01:11]}  c6 {[%clk 0:01:35]} 18. Rad1 {[%clk 0:01:10]}  Nc4 {[%clk 0:01:29]} 19. Bf3 {[%clk 0:00:33]}  Bxg3 {[%clk 0:01:24]} 20. Rhg1 {[%clk 0:00:06]}  Bxf2 {[%clk 0:01:22]} 21. Kxf2 {[%clk 0:00:05]}  Nxe3 {[%clk 0:01:14]} 22. Rd7 {[%clk 0:00:04]}  g6 {[%clk 0:00:53]} 23. Re1 {[%clk 0:00:04]}  Nc4 {[%clk 0:00:36]} 24. Rxe8 {[%clk 0:00:05]}  Rxe8 {[%clk 0:00:37]} 25. Rxb7 {[%clk 0:00:05]}  Rf8 {[%clk 0:00:29]} 26. Kg3 {[%clk 0:00:04]}  Ne5 {[%clk 0:00:28]} 27. Bg2 {[%clk 0:00:05]}  a5 {[%clk 0:00:24]} 28. Re7 {[%clk 0:00:04]}  Rf5 {[%clk 0:00:21]} 29. Ra7 {[%clk 0:00:02]}  Rg5+ {[%clk 0:00:21]} 30. Kf2 {[%clk 0:00:02]}  Nd3+ {[%clk 0:00:21]} 31. Kf1 {[%clk 0:00:03]}  Nxb2 {[%clk 0:00:15]} 32. Bxc6 {[%clk 0:00:03]}  Nd1 {[%clk 0:00:08]} 33. c4 {[%clk 0:00:02]}  Ne3+ {[%clk 0:00:08]} 34. Kf2 {[%clk 0:00:02]}  Nd1+ {[%clk 0:00:07]} 35. Ke1 {[%clk 0:00:02]}  Nc3 {[%clk 0:00:07]} 36. Bb5 {[%clk 0:00:02]}  h5 {[%clk 0:00:06]} 37. Rxa5 {[%clk 0:00:02]}  Kg7 {[%clk 0:00:03]} 38. Kd2 {[%clk 0:00:02]}  Ne4+ {[%clk 0:00:03]} 39. Ke3 {[%clk 0:00:02]}  Ng3 {[%clk 0:00:02]} 40. Ra7+ {[%clk 0:00:02]}  Kh6 {[%clk 0:00:02]} 41. h4 {[%clk 0:00:02]}  Nf5+ {[%clk 0:00:03]} 42. Kd3 {[%clk 0:00:02]}  Nxh4 {[%clk 0:00:04]} 43. Kc3 {[%clk 0:00:03]}  Rg3+ {[%clk 0:00:04]} 44. Kb4 {[%clk 0:00:02]}  Nf5 {[%clk 0:00:05]} 45. a4 {[%clk 0:00:03]}  h4 {[%clk 0:00:05]} 46. Bc6 {[%clk 0:00:03]}  h3 {[%clk 0:00:05]} 47. Bd5 {[%clk 0:00:02]}  Ne3 {[%clk 0:00:05]} 48. Bc6 {[%clk 0:00:02]}  Nc2+ {[%clk 0:00:05]} 49. Kc5 {[%clk 0:00:02]}  Rg5+ {[%clk 0:00:05]} 50. Kb6 {[%clk 0:00:02]}  h2 {[%clk 0:00:05]} 51. Ra8 {[%clk 0:00:02]}  Rh5 {[%clk 0:00:05]} 52. Rh8+ {[%clk 0:00:02]}  Kg5 {[%clk 0:00:05]} 53. Rxh5+ {[%clk 0:00:03]}  Kxh5 {[%clk 0:00:05]} 54. a5 {[%clk 0:00:03]}  Nb4 {[%clk 0:00:03]} 55. Bb7 {[%clk 0:00:03]}  g5 {[%clk 0:00:03]} 56. a6 {[%clk 0:00:03]}  Nxa6 {[%clk 0:00:03]} 57. Kxa6 {[%clk 0:00:04]}  g4 {[%clk 0:00:03]} 58. Bg2 {[%clk 0:00:04]}  Kh4 {[%clk 0:00:03]} 59. c5 {[%clk 0:00:05]}  Kg3 {[%clk 0:00:03]} 60. Bh1 {[%clk 0:00:05]}  Kf2 {[%clk 0:00:04]} 61. c6 {[%clk 0:00:06]}  g3 {[%clk 0:00:05]} 62. c7 {[%clk 0:00:05]}  g2 {[%clk 0:00:06]} 63. Bxg2 {[%clk 0:00:05]}  Kxg2 {[%clk 0:00:06]} 64. c8=Q {[%clk 0:00:06]}  h1=Q {[%clk 0:00:07]} 65. Qb7+ {[%clk 0:00:06]}  Kg1 {[%clk 0:00:07]} 66. Qxh1+ {[%clk 0:00:06]}  Kxh1 {[%clk 0:00:08]} 1/2-1/2


[Site "https://www.chess.com"]

[Event "Titled Tuesday Blitz March 21 Late 2023"]
[White "Wizard_of_Odds"]
[Black "Stelmaszyk, Nico"]
[BlackFideId "16200462"]
[WhiteElo "2369"]
[BlackElo "2255"]
[Result "0-1"]
[Round "10"]
[TimeControl "180+2"]
[Date "2023.03.21"]
[WhiteClock "0:00:11"]
[BlackClock "0:01:13"]

1. d4 {[%clk 0:02:58]}  d5 {[%clk 0:02:52]} 2. c4 {[%clk 0:02:57]}  e6 {[%clk 0:02:52]} 3. Nc3 {[%clk 0:02:53]}  a6 {[%clk 0:02:46]} 4. cxd5 {[%clk 0:02:42]}  exd5 {[%clk 0:02:47]} 5. Bf4 {[%clk 0:02:42]}  c6 {[%clk 0:02:42]} 6. e3 {[%clk 0:02:41]}  Bd6 {[%clk 0:02:41]} 7. Nge2 {[%clk 0:02:39]}  Bxf4 {[%clk 0:02:41]} 8. Nxf4 {[%clk 0:02:39]}  Bf5 {[%clk 0:02:41]} 9. g4 {[%clk 0:02:30]}  Bd7 {[%clk 0:02:41]} 10. h4 {[%clk 0:02:26]}  Qe7 {[%clk 0:02:28]} 11. Bd3 {[%clk 0:02:22]}  h6 {[%clk 0:02:22]} 12. Qf3 {[%clk 0:02:10]}  a5 {[%clk 0:02:19]} 13. Nh5 {[%clk 0:02:02]}  Kf8 {[%clk 0:02:08]} 14. O-O-O {[%clk 0:01:58]}  Na6 {[%clk 0:02:08]} 15. Ng3 {[%clk 0:01:45]}  Nb4 {[%clk 0:02:05]} 16. Bf5 {[%clk 0:01:41]}  Nf6 {[%clk 0:02:01]} 17. a3 {[%clk 0:01:37]}  Na6 {[%clk 0:02:01]} 18. Bxd7 {[%clk 0:01:35]}  Qxd7 {[%clk 0:02:01]} 19. Nf5 {[%clk 0:01:32]}  b5 {[%clk 0:02:01]} 20. g5 {[%clk 0:01:25]}  Ng8 {[%clk 0:02:01]} 21. Qf4 {[%clk 0:01:12]}  b4 {[%clk 0:01:58]} 22. axb4 {[%clk 0:01:09]}  axb4 {[%clk 0:01:59]} 23. Na4 {[%clk 0:01:07]}  Qc7 {[%clk 0:01:47]} 24. Qxc7 {[%clk 0:01:01]}  Nxc7 {[%clk 0:01:48]} 25. Nc5 {[%clk 0:00:52]}  hxg5 {[%clk 0:01:46]} 26. Kc2 {[%clk 0:00:34]}  gxh4 {[%clk 0:01:46]} 27. Nxh4 {[%clk 0:00:33]}  Nf6 {[%clk 0:01:44]} 28. Ng6+ {[%clk 0:00:31]}  fxg6 {[%clk 0:01:45]} 29. Rxh8+ {[%clk 0:00:31]}  Kf7 {[%clk 0:01:46]} 30. Rxa8 {[%clk 0:00:29]}  Nxa8 {[%clk 0:01:47]} 31. Ra1 {[%clk 0:00:29]}  Nb6 {[%clk 0:01:47]} 32. Ra6 {[%clk 0:00:27]}  Nc4 {[%clk 0:01:46]} 33. Rxc6 {[%clk 0:00:26]}  Ng4 {[%clk 0:01:47]} 34. Nd3 {[%clk 0:00:22]}  g5 {[%clk 0:01:42]} 35. b3 {[%clk 0:00:21]}  Na3+ {[%clk 0:01:40]} 36. Kd2 {[%clk 0:00:19]}  Nb1+ {[%clk 0:01:40]} 37. Ke2 {[%clk 0:00:15]}  Nc3+ {[%clk 0:01:41]} 38. Kf3 {[%clk 0:00:15]}  Nf6 {[%clk 0:01:38]} 39. Nxb4 {[%clk 0:00:14]}  Nce4 {[%clk 0:01:39]} 40. Kg2 {[%clk 0:00:06]}  g4 {[%clk 0:01:40]} 41. Rc7+ {[%clk 0:00:06]}  Kg6 {[%clk 0:01:39]} 42. Rc1 {[%clk 0:00:06]}  Kf5 {[%clk 0:01:37]} 43. Nd3 {[%clk 0:00:06]}  g5 {[%clk 0:01:37]} 44. b4 {[%clk 0:00:07]}  g3 {[%clk 0:01:38]} 45. fxg3 {[%clk 0:00:06]}  Ng4 {[%clk 0:01:38]} 46. Rf1+ {[%clk 0:00:06]}  Ke6 {[%clk 0:01:37]} 47. Nc5+ {[%clk 0:00:06]}  Nxc5 {[%clk 0:01:37]} 48. bxc5 {[%clk 0:00:06]}  Nxe3+ {[%clk 0:01:38]} 49. Kf2 {[%clk 0:00:07]}  Nc2 {[%clk 0:01:39]} 50. Re1+ {[%clk 0:00:07]}  Kd7 {[%clk 0:01:39]} 51. Rd1 {[%clk 0:00:07]}  g4 {[%clk 0:01:38]} 52. Ke2 {[%clk 0:00:07]}  Kc6 {[%clk 0:01:39]} 53. Kd3 {[%clk 0:00:07]}  Nb4+ {[%clk 0:01:39]} 54. Kc3 {[%clk 0:00:07]}  Na6 {[%clk 0:01:40]} 55. Rf1 {[%clk 0:00:07]}  Nc7 {[%clk 0:01:40]} 56. Rf6+ {[%clk 0:00:07]}  Kb5 {[%clk 0:01:40]} 57. Rb6+ {[%clk 0:00:08]}  Ka5 {[%clk 0:01:39]} 58. Rg6 {[%clk 0:00:09]}  Nb5+ {[%clk 0:01:40]} 59. Kd3 {[%clk 0:00:09]}  Na7 {[%clk 0:01:39]} 60. Rxg4 {[%clk 0:00:09]}  Kb4 {[%clk 0:01:40]} 61. Rg7 {[%clk 0:00:09]}  Nc6 {[%clk 0:01:40]} 62. Rb7+ {[%clk 0:00:09]}  Ka5 {[%clk 0:01:40]} 63. Rb6 {[%clk 0:00:09]}  Ne7 {[%clk 0:01:41]} 64. g4 {[%clk 0:00:09]}  Ka4 {[%clk 0:01:41]} 65. g5 {[%clk 0:00:10]}  Ka5 {[%clk 0:01:42]} 66. g6 {[%clk 0:00:10]}  Ka4 {[%clk 0:01:43]} 67. Re6 {[%clk 0:00:10]}  Ng8 {[%clk 0:01:43]} 68. g7 {[%clk 0:00:09]}  Kb5 {[%clk 0:01:39]} 69. Re8 {[%clk 0:00:09]}  Nf6 {[%clk 0:01:40]} 70. g8=Q {[%clk 0:00:10]}  Nxg8 {[%clk 0:01:41]} 71. Rxg8 {[%clk 0:00:10]}  Kc6 {[%clk 0:01:42]} 72. Rg6+ {[%clk 0:00:10]}  Kb5 {[%clk 0:01:43]} 73. Rb6+ {[%clk 0:00:10]}  Ka5 {[%clk 0:01:43]} 74. Rb1 {[%clk 0:00:10]}  Ka4 {[%clk 0:01:42]} 75. c6 {[%clk 0:00:10]}  Ka3 {[%clk 0:01:43]} 76. c7 {[%clk 0:00:10]}  Ka2 {[%clk 0:01:44]} 77. Rb7 {[%clk 0:00:10]}  Ka3 {[%clk 0:01:44]} 78. c8=Q {[%clk 0:00:11]}  Ka4 {[%clk 0:01:13]} 0-1


[Site "https://www.chess.com"]

[Event "Titled Tuesday Blitz March 21 Late 2023"]
[White "Fernandez Siles, Luis"]
[Black "Gonzalez, Francisco Silva"]
[WhiteFideId "2209420"]
[BlackFideId "1512285"]
[WhiteElo "2186"]
[BlackElo "2074"]
[Result "0-1"]
[Round "10"]
[TimeControl "180+2"]
[Date "2023.03.21"]
[WhiteClock "0:00:05"]
[BlackClock "0:01:02"]

1. d4 {[%clk 0:03:00]}  Nf6 {[%clk 0:02:55]} 2. c4 {[%clk 0:03:00]}  e6 {[%clk 0:02:53]} 3. Nc3 {[%clk 0:03:00]}  Bb4 {[%clk 0:02:51]} 4. e3 {[%clk 0:03:00]}  O-O {[%clk 0:02:48]} 5. Ne2 {[%clk 0:03:00]}  d5 {[%clk 0:02:47]} 6. a3 {[%clk 0:02:58]}  Bd6 {[%clk 0:02:44]} 7. c5 {[%clk 0:02:42]}  Be7 {[%clk 0:02:44]} 8. b4 {[%clk 0:02:43]}  c6 {[%clk 0:02:43]} 9. f4 {[%clk 0:02:40]}  b6 {[%clk 0:02:43]} 10. Bd2 {[%clk 0:02:38]}  a5 {[%clk 0:02:43]} 11. Ng3 {[%clk 0:02:34]}  Qc7 {[%clk 0:02:36]} 12. Bd3 {[%clk 0:02:29]}  Nbd7 {[%clk 0:02:36]} 13. O-O {[%clk 0:02:23]}  Ba6 {[%clk 0:02:34]} 14. Bxa6 {[%clk 0:02:19]}  Rxa6 {[%clk 0:02:34]} 15. cxb6 {[%clk 0:02:12]}  Qxb6 {[%clk 0:02:30]} 16. bxa5 {[%clk 0:02:07]}  Qxa5 {[%clk 0:02:28]} 17. Kh1 {[%clk 0:01:44]}  Rfa8 {[%clk 0:02:23]} 18. Qc2 {[%clk 0:01:27]}  Qd8 {[%clk 0:02:20]} 19. a4 {[%clk 0:01:25]}  g6 {[%clk 0:02:18]} 20. Rfb1 {[%clk 0:01:21]}  Qc8 {[%clk 0:02:08]} 21. h3 {[%clk 0:01:16]}  h5 {[%clk 0:01:59]} 22. e4 {[%clk 0:01:03]}  h4 {[%clk 0:01:57]} 23. Nge2 {[%clk 0:01:01]}  c5 {[%clk 0:01:50]} 24. exd5 {[%clk 0:00:56]}  exd5 {[%clk 0:01:47]} 25. f5 {[%clk 0:00:48]}  cxd4 {[%clk 0:01:46]} 26. Nxd4 {[%clk 0:00:46]}  Ne4 {[%clk 0:01:43]} 27. Qb2 {[%clk 0:00:29]}  Nxd2 {[%clk 0:01:37]} 28. Qxd2 {[%clk 0:00:18]}  Qc4 {[%clk 0:01:13]} 29. Rb7 {[%clk 0:00:14]}  Bf6 {[%clk 0:01:10]} 30. Ncb5 {[%clk 0:00:12]}  Rxa4 {[%clk 0:01:05]} 31. Rxa4 {[%clk 0:00:11]}  Qf1+ {[%clk 0:01:03]} 32. Kh2 {[%clk 0:00:08]}  Be5+ {[%clk 0:01:02]} 33. g3 {[%clk 0:00:05]}  hxg3# {[%clk 0:01:02]} 0-1


[Site "https://www.chess.com"]

[Event "Titled Tuesday Blitz March 21 Late 2023"]
[White "Krzywda, Andrzej"]
[Black "Lauridsen, Jesper Morch"]
[WhiteFideId "1114565"]
[BlackFideId "1401890"]
[WhiteElo "2155"]
[BlackElo "2282"]
[Result "1-0"]
[Round "10"]
[TimeControl "180+2"]
[Date "2023.03.21"]
[WhiteClock "0:00:07"]
[BlackClock "0:00:01"]

1. e4 {[%clk 0:03:00]}  c5 {[%clk 0:02:59]} 2. Nf3 {[%clk 0:03:00]}  d6 {[%clk 0:02:59]} 3. d4 {[%clk 0:03:00]}  cxd4 {[%clk 0:03:00]} 4. Nxd4 {[%clk 0:03:01]}  Nf6 {[%clk 0:03:00]} 5. Nc3 {[%clk 0:03:01]}  e6 {[%clk 0:03:01]} 6. g4 {[%clk 0:02:59]}  h6 {[%clk 0:03:00]} 7. g5 {[%clk 0:02:51]}  hxg5 {[%clk 0:02:59]} 8. Bxg5 {[%clk 0:02:52]}  Be7 {[%clk 0:02:55]} 9. h4 {[%clk 0:02:50]}  Nc6 {[%clk 0:02:53]} 10. Rg1 {[%clk 0:02:48]}  Qb6 {[%clk 0:02:48]} 11. Nb3 {[%clk 0:02:47]}  Bd7 {[%clk 0:02:34]} 12. Qd2 {[%clk 0:02:44]}  O-O-O {[%clk 0:02:28]} 13. O-O-O {[%clk 0:02:44]}  Kb8 {[%clk 0:02:24]} 14. Rg3 {[%clk 0:02:39]}  Nh5 {[%clk 0:02:15]} 15. Bxe7 {[%clk 0:02:26]}  Nxe7 {[%clk 0:02:08]} 16. Rg5 {[%clk 0:02:23]}  Bc6 {[%clk 0:02:01]} 17. Bg2 {[%clk 0:02:15]}  f6 {[%clk 0:01:57]} 18. Ra5 {[%clk 0:02:13]}  g5 {[%clk 0:01:31]} 19. hxg5 {[%clk 0:02:09]}  fxg5 {[%clk 0:01:31]} 20. Rxg5 {[%clk 0:02:06]}  Nf6 {[%clk 0:01:29]} 21. Rg7 {[%clk 0:02:00]}  Nc8 {[%clk 0:01:21]} 22. Qf4 {[%clk 0:01:52]}  Rhf8 {[%clk 0:01:19]} 23. Qd2 {[%clk 0:01:44]}  Nh5 {[%clk 0:01:14]} 24. Rg5 {[%clk 0:01:35]}  Rxf2 {[%clk 0:01:11]} 25. Qd4 {[%clk 0:01:28]}  Nf4 {[%clk 0:01:03]} 26. Qxb6 {[%clk 0:01:19]}  Nxb6 {[%clk 0:01:03]} 27. Bh1 {[%clk 0:01:19]}  Ne2+ {[%clk 0:00:57]} 28. Nxe2 {[%clk 0:01:18]}  Rxe2 {[%clk 0:00:57]} 29. Nd4 {[%clk 0:01:17]}  Re3 {[%clk 0:00:47]} 30. Nxe6 {[%clk 0:01:12]}  Re8 {[%clk 0:00:47]} 31. Ng7 {[%clk 0:01:04]}  Rg8 {[%clk 0:00:45]} 32. Nf5 {[%clk 0:00:55]}  Rxg5 {[%clk 0:00:36]} 33. Nxe3 {[%clk 0:00:55]}  Kc7 {[%clk 0:00:28]} 34. Rf1 {[%clk 0:00:46]}  Nd7 {[%clk 0:00:27]} 35. Kd2 {[%clk 0:00:43]}  Ne5 {[%clk 0:00:26]} 36. b3 {[%clk 0:00:41]}  Rh5 {[%clk 0:00:17]} 37. c4 {[%clk 0:00:20]}  Rh2+ {[%clk 0:00:17]} 38. Kc3 {[%clk 0:00:20]}  Rh3 {[%clk 0:00:14]} 39. Kd4 {[%clk 0:00:18]}  a6 {[%clk 0:00:10]} 40. Bg2 {[%clk 0:00:18]}  Rh4 {[%clk 0:00:08]} 41. Rh1 {[%clk 0:00:14]}  Rf4 {[%clk 0:00:05]} 42. Rh7+ {[%clk 0:00:12]}  Kb6 {[%clk 0:00:05]} 43. a4 {[%clk 0:00:10]}  Nf3+ {[%clk 0:00:03]} 44. Bxf3 {[%clk 0:00:09]}  Rxf3 {[%clk 0:00:03]} 45. b4 {[%clk 0:00:08]}  Rf4 {[%clk 0:00:02]} 46. Re7 {[%clk 0:00:08]}  a5 {[%clk 0:00:01]} 47. b5 {[%clk 0:00:07]} 1-0


[Site "https://www.chess.com"]

[Event "Titled Tuesday Blitz March 21 Late 2023"]
[White "Ladan, Nicholas"]
[Black "Balla, Tamas-Kristof"]
[WhiteFideId "30918855"]
[BlackFideId "1208497"]
[WhiteElo "2167"]
[BlackElo "2334"]
[Result "1-0"]
[Round "10"]
[TimeControl "180+2"]
[Date "2023.03.21"]
[WhiteClock "0:00:27"]
[BlackClock "0:01:17"]

1. e3 {[%clk 0:03:00]}  c5 {[%clk 0:02:58]} 2. c4 {[%clk 0:02:59]}  g6 {[%clk 0:02:51]} 3. Nc3 {[%clk 0:02:59]}  Bg7 {[%clk 0:02:51]} 4. b3 {[%clk 0:02:59]}  Nc6 {[%clk 0:02:51]} 5. Bb2 {[%clk 0:02:59]}  Nf6 {[%clk 0:02:51]} 6. g3 {[%clk 0:02:58]}  O-O {[%clk 0:02:51]} 7. Bg2 {[%clk 0:02:59]}  e6 {[%clk 0:02:51]} 8. Nge2 {[%clk 0:02:58]}  d5 {[%clk 0:02:51]} 9. cxd5 {[%clk 0:02:54]}  exd5 {[%clk 0:02:52]} 10. d4 {[%clk 0:02:54]}  cxd4 {[%clk 0:02:48]} 11. exd4 {[%clk 0:02:54]}  Re8 {[%clk 0:02:46]} 12. O-O {[%clk 0:02:52]}  Bg4 {[%clk 0:02:46]} 13. h3 {[%clk 0:02:44]}  Bf5 {[%clk 0:02:41]} 14. Nf4 {[%clk 0:02:30]}  Qd7 {[%clk 0:02:33]} 15. Kh2 {[%clk 0:02:23]}  Rad8 {[%clk 0:02:33]} 16. Rc1 {[%clk 0:01:38]}  Ne4 {[%clk 0:02:16]} 17. Nxe4 {[%clk 0:00:59]}  Bxe4 {[%clk 0:02:15]} 18. f3 {[%clk 0:00:58]}  Bf5 {[%clk 0:02:13]} 19. h4 {[%clk 0:00:57]}  h5 {[%clk 0:02:12]} 20. Rf2 {[%clk 0:00:53]}  Re3 {[%clk 0:02:11]} 21. Re2 {[%clk 0:00:46]}  Rde8 {[%clk 0:02:09]} 22. Rxe3 {[%clk 0:00:46]}  Rxe3 {[%clk 0:02:10]} 23. Qd2 {[%clk 0:00:46]}  Qe7 {[%clk 0:02:07]} 24. Nxd5 {[%clk 0:00:39]}  Qd6 {[%clk 0:01:25]} 25. Nxe3 {[%clk 0:00:36]}  Bd7 {[%clk 0:01:25]} 26. d5 {[%clk 0:00:34]}  Ne5 {[%clk 0:01:24]} 27. Nc4 {[%clk 0:00:27]}  Nxc4 {[%clk 0:01:17]} 28. bxc4 {[%clk 0:00:27]} 1-0


[Site "https://www.chess.com"]